[Event "FIDE Women World Rapid 2024"]
[Site "New York"]
[Date "2024.12.27"]
[Round "8.5"]
[White "Paehtz, Elisabeth"]
[Black "Zhu, Jiner"]
[Result "1-0"]
[ECO "D02"]
[WhiteElo "2430"]
[BlackElo "2514"]
[Annotator "ChessBase"]
[PlyCount "83"]
[EventDate "2024.12.14"]
[EventType "swiss"]
[EventCountry "USA"]
[SourceTitle "playchess.com"]
[Source "ChessBase"]
[SourceQuality "1"]
[TimeControl "900+10"]

1. d4 {[%emt 0:00:01]} Nf6 {[%emt 0:00:02]} 2. Nf3 {[%emt 0:00:01]} e6 {[%emt 0:00:06]} 3. Bf4 {[%emt 0:00:01]} d5 {[%emt 0:00:04]} 4. e3 {[%emt 0:00:02]} Bd6 {[%emt 0:00:09]} 5. c3 {[%emt 0:00:03]} O-O {[%emt 0:00:04]} 6. Nbd2 {[%emt 0:00:20]} c5 {[%emt 0:00:03]} 7. Bd3 {[%emt 0:00:16]} Qc7 {[%emt 0:00:39]} 8. Bxd6 {[%emt 0:00:02]} Qxd6 {[%emt 0:00:02]} 9. Ne5 {[%emt 0:00:02]} b6 {[%emt 0:00:31]} 10. f4 {[%emt 0:00:09]} Ba6 {[%emt 0:00:45]} 11. Bc2 {[%emt 0:00:01]} Nc6 {[%emt 0:01:03]} 12. g4 {[%emt 0:01:17]} Ne7 {[%emt 0:00:08]} 13. Qf3 {[%emt 0:01:12]} Ne8 {[%emt 0:00:46]} 14. Qh3 {[%emt 0:01:06]} f5 {[%emt 0:00:04]} 15. Rg1 {[%emt 0:00:40]} Rc8 {[%emt 0:01:33]} 16. Ndf3 {[%emt 0:01:49]} Nf6 {[%emt 0:01:44]} 17. Ng5 {[%emt 0:02:09]} cxd4 {[%emt 0:01:02]} 18. exd4 {[%emt 0:00:02]} b5 {[%emt 0:02:29]} 19. a3 {[%emt 0:00:52]} Bb7 {[%emt 0:00:01]} 20. gxf5 {[%emt 0:02:05]} exf5 {[%emt 0:01:11]} 21. Bxf5 {[%emt 0:00:55]} Nxf5 {[%emt 0:00:02]} 22. Qxf5 {[%emt 0:00:02]} Rce8 {[%emt 0:00:05]} 23. O-O-O {[%emt 0:00:29]} a5 {[%emt 0:00:09]} 24. Rg3 {[%emt 0:02:30]} Bc8 {[%emt 0:01:04]} 25. Qc2 {[%emt 0:00:16]} b4 {[%emt 0:00:07]} 26. Rdg1 {[%emt 0:00:15]} Re7 {[%emt 0:00:02]} 27. a4 {[%emt 0:00:21]} Rc7 {[%emt 0:00:15]} 28. Kb1 {[%emt 0:00:28]} bxc3 {[%emt 0:00:19]} 29. Rxc3 {[%emt 0:00:08]} Rxc3 {[%emt 0:00:01]} 30. Qxc3 {[%emt 0:00:05]} Bf5+ {[%emt 0:00:03]} 31. Ka2 {[%emt 0:00:06]} Qb6 {[%emt 0:01:49]} 32. Qc5 {[%emt 0:00:14]} Qb7 {[%emt 0:00:02]} 33. Qb5 {[%emt 0:00:26]} Qa7 {[%emt 0:00:40]} 34. Nc6 {[%emt 0:00:07]} Qc7 {[%emt 0:00:02]} 35. Qc5 {[%emt 0:00:09]} Re8 {[%emt 0:00:15]} 36. Ne5 {[%emt 0:00:13]} Qb7 {[%emt 0:00:03]} 37. Ngf7 {[%emt 0:00:13]} Bg6 {[%emt 0:02:45]} 38. Nd6 {[%emt 0:00:04]} Qa6 {[%emt 0:00:02]} 39. Nxe8 {[%emt 0:00:14]} Bxe8 {[%emt 0:00:32]} 40. Qe7 {[%emt 0:00:19]} g6 {[%emt 0:00:14]} 41. Rc1 {[%emt 0:00:10]} Bxa4 {[%emt 0:00:02]} 42. Rc7 {[%emt 0:00:26]} 1-0

[Event "FIDE Women World Rapid 2024"]
[Site "New York"]
[Date "2024.12.27"]
[Round "8.5"]
[White "Garcia Martin, Marta"]
[Black "Nurgaliyeva, Zarina"]
[Result "0-1"]
[ECO "A00"]
[WhiteElo "2322"]
[BlackElo "2263"]
[Annotator "ChessBase"]
[PlyCount "126"]
[EventDate "2024.12.14"]
[EventType "swiss"]
[EventCountry "USA"]
[SourceTitle "playchess.com"]
[Source "ChessBase"]
[SourceQuality "1"]
[TimeControl "900+10"]

1. g3 {[%emt 0:00:02]} d5 {[%emt 0:00:09]} 2. Bg2 {[%emt 0:00:02]} e5 {[%emt 0:00:27]} 3. d3 {[%emt 0:00:01]} Nf6 {[%emt 0:00:21]} 4. a3 {[%emt 0:00:04]} Be7 {[%emt 0:00:33]} 5. b4 {[%emt 0:00:22]} O-O {[%emt 0:00:07]} 6. Bb2 {[%emt 0:00:01]} Nbd7 {[%emt 0:00:02]} 7. c4 {[%emt 0:00:26]} c6 {[%emt 0:00:28]} 8. Qb3 {[%emt 0:01:05]} a5 {[%emt 0:00:22]} 9. Nd2 {[%emt 0:01:12]} axb4 {[%emt 0:00:41]} 10. axb4 {[%emt 0:00:02]} Rxa1+ {[%emt 0:00:01]} 11. Bxa1 {[%emt 0:00:01]} Qb6 {[%emt 0:00:01]} 12. b5 {[%emt 0:01:25]} Qa7 {[%emt 0:05:26]} 13. Qb1 {[%emt 0:00:22]} Re8 {[%emt 0:01:56]} 14. Nh3 {[%emt 0:00:42]} Bb4 {[%emt 0:00:41]} 15. Qxb4 {[%emt 0:00:47]} Qxa1+ {[%emt 0:00:02]} 16. Qb1 {[%emt 0:00:01]} Qa5 {[%emt 0:00:04]} 17. Qb2 {[%emt 0:03:16]} dxc4 {[%emt 0:02:03]} 18. dxc4 {[%emt 0:00:03]} e4 {[%emt 0:00:01]} 19. O-O {[%emt 0:00:33]} e3 {[%emt 0:01:02]} 20. fxe3 {[%emt 0:00:02]} Ng4 {[%emt 0:00:13]} 21. Ne4 {[%emt 0:07:44]} Nxe3 {[%emt 0:00:21]} 22. Nd6 {[%emt 0:00:06]} Rf8 {[%emt 0:01:22]} 23. Nf5 {[%emt 0:00:19]} Nxf5 {[%emt 0:00:16]} 24. Rxf5 {[%emt 0:00:02]} Nb6 {[%emt 0:00:46]} 25. Rf4 {[%emt 0:00:09]} Qe1+ {[%emt 0:00:54]} 26. Rf1 {[%emt 0:00:06]} Nxc4 {[%emt 0:00:01]} 27. Rxe1 {[%emt 0:00:28]} Nxb2 {[%emt 0:00:02]} 28. bxc6 {[%emt 0:00:08]} bxc6 {[%emt 0:00:01]} 29. Rc1 {[%emt 0:00:11]} Bd7 {[%emt 0:00:22]} 30. Ng5 {[%emt 0:00:15]} f6 {[%emt 0:00:59]} 31. Ne4 {[%emt 0:00:01]} Na4 {[%emt 0:00:01]} 32. Rc4 {[%emt 0:00:19]} Ra8 {[%emt 0:00:16]} 33. Kf2 {[%emt 0:00:10]} Kf7 {[%emt 0:00:15]} 34. Rb4 {[%emt 0:00:11]} Ra7 {[%emt 0:00:10]} 35. Nd6+ {[%emt 0:00:07]} Ke7 {[%emt 0:00:16]} 36. Nc4 {[%emt 0:00:10]} c5 {[%emt 0:00:14]} 37. Rb8 {[%emt 0:00:02]} Nc3 {[%emt 0:00:08]} 38. Nb6 {[%emt 0:00:10]} Be6 {[%emt 0:00:13]} 39. Bf3 {[%emt 0:00:17]} Kd6 {[%emt 0:00:07]} 40. Rh8 {[%emt 0:00:09]} h6 {[%emt 0:00:09]} 41. Nc8+ {[%emt 0:00:08]} Bxc8 {[%emt 0:00:03]} 42. Rxc8 {[%emt 0:00:01]} Rc7 {[%emt 0:00:13]} 43. Rd8+ {[%emt 0:00:11]} Ke7 {[%emt 0:00:08]} 44. Rg8 {[%emt 0:00:18]} Kf7 {[%emt 0:00:01]} 45. Rb8 {[%emt 0:00:07]} Nd1+ {[%emt 0:00:11]} 46. Ke1 {[%emt 0:00:02]} Ne3 {[%emt 0:00:01]} 47. Kf2 {[%emt 0:00:27]} Nf5 {[%emt 0:00:07]} 48. Bd5+ {[%emt 0:00:06]} Ke7 {[%emt 0:00:03]} 49. e4 {[%emt 0:00:13]} Nd6 {[%emt 0:00:24]} 50. Ke3 {[%emt 0:00:11]} c4 {[%emt 0:00:33]} 51. Kd2 {[%emt 0:00:01]} f5 {[%emt 0:00:11]} 52. e5 {[%emt 0:00:11]} c3+ {[%emt 0:00:06]} 53. Kc2 {[%emt 0:00:02]} Nf7 {[%emt 0:00:09]} 54. Rg8 {[%emt 0:00:20]} Rc5 {[%emt 0:00:13]} 55. e6 {[%emt 0:00:10]} Rxd5 {[%emt 0:00:04]} 56. exf7 {[%emt 0:00:07]} Kxf7 {[%emt 0:00:01]} 57. Rc8 {[%emt 0:00:03]} Rd2+ {[%emt 0:00:02]} 58. Kxc3 {[%emt 0:00:01]} Rxh2 {[%emt 0:00:02]} 59. Kd4 {[%emt 0:00:02]} Re2 {[%emt 0:00:03]} 60. Rc6 {[%emt 0:00:06]} h5 {[%emt 0:00:08]} 61. Ra6 {[%emt 0:00:10]} g6 {[%emt 0:00:06]} 62. Ra3 {[%emt 0:00:26]} Kf6 {[%emt 0:00:03]} 63. Kd3 {[%emt 0:00:01]} Re4 {[%emt 0:00:05]} 0-1

[Event "FIDE Women World Rapid 2024"]
[Site "New York"]
[Date "2024.12.27"]
[Round "8.6"]
[White "Khamdamova, Afruza"]
[Black "Assaubayeva, Bibisara"]
[Result "1/2-1/2"]
[ECO "B92"]
[WhiteElo "2354"]
[BlackElo "2492"]
[Annotator "ChessBase"]
[PlyCount "70"]
[EventDate "2024.12.14"]
[EventType "swiss"]
[EventCountry "USA"]
[SourceTitle "playchess.com"]
[Source "ChessBase"]
[SourceQuality "1"]
[TimeControl "900+10"]

1. e4 {[%emt 0:00:01]} c5 {[%emt 0:00:01]} 2. Nf3 {[%emt 0:00:01]} d6 {[%emt 0:00:02]} 3. d4 {[%emt 0:00:01]} cxd4 {[%emt 0:00:02]} 4. Nxd4 {[%emt 0:00:02]} Nf6 {[%emt 0:00:02]} 5. Nc3 {[%emt 0:00:01]} a6 {[%emt 0:00:01]} 6. Be2 {[%emt 0:00:02]} e5 {[%emt 0:00:01]} 7. Nb3 {[%emt 0:00:01]} Be7 {[%emt 0:00:02]} 8. Be3 {[%emt 0:00:01]} Be6 {[%emt 0:00:02]} 9. Nd5 {[%emt 0:00:02]} Nbd7 {[%emt 0:00:36]} 10. Qd3 {[%emt 0:00:01]} Bxd5 {[%emt 0:00:31]} 11. exd5 {[%emt 0:00:02]} O-O {[%emt 0:00:06]} 12. g4 {[%emt 0:00:28]} e4 {[%emt 0:02:04]} 13. Qd2 {[%emt 0:03:43]} Nb6 {[%emt 0:00:17]} 14. c4 {[%emt 0:00:38]} Rc8 {[%emt 0:00:13]} 15. Rc1 {[%emt 0:04:44]} Nfd7 {[%emt 0:00:27]} 16. Nd4 {[%emt 0:00:28]} Ne5 {[%emt 0:00:30]} 17. b3 {[%emt 0:00:03]} Nbd7 {[%emt 0:00:09]} 18. O-O {[%emt 0:00:52]} Nc5 {[%emt 0:00:27]} 19. Rcd1 {[%emt 0:00:16]} Qd7 {[%emt 0:00:59]} 20. h3 {[%emt 0:00:08]} Rfe8 {[%emt 0:01:27]} 21. Kg2 {[%emt 0:00:45]} Ng6 {[%emt 0:00:27]} 22. Nf5 {[%emt 0:00:10]} b5 {[%emt 0:00:59]} 23. Bd4 {[%emt 0:00:29]} Bf8 {[%emt 0:00:30]} 24. Qe3 {[%emt 0:00:40]} Nd3 {[%emt 0:00:24]} 25. Bxd3 {[%emt 0:00:29]} exd3 {[%emt 0:00:05]} 26. Qf3 {[%emt 0:00:45]} bxc4 {[%emt 0:00:40]} 27. bxc4 {[%emt 0:00:00]} Rxc4 {[%emt 0:00:20]} 28. Rxd3 {[%emt 0:00:01]} Rc2 {[%emt 0:01:48]} 29. a3 {[%emt 0:00:24]} Qb5 {[%emt 0:00:55]} 30. Kg1 {[%emt 0:00:07]} Nf4 {[%emt 0:02:10]} 31. Qxf4 {[%emt 0:02:19]} Qxd3 {[%emt 0:00:02]} 32. Qg5 {[%emt 0:00:12]} f6 {[%emt 0:02:02]} 33. Nh6+ {[%emt 0:00:24]} Kh8 {[%emt 0:00:02]} 34. Nf7+ {[%emt 0:00:01]} Kg8 {[%emt 0:00:00]} 35. Nh6+ {[%emt 0:00:00]} Kh8 {[%emt 0:00:01]} 1/2-1/2

[Event "FIDE Women World Rapid 2024"]
[Site "New York"]
[Date "2024.12.27"]
[Round "8.6"]
[White "Mammadova, Gulnar"]
[Black "Lesbekova, Assel"]
[Result "1-0"]
[ECO "C43"]
[WhiteElo "2333"]
[BlackElo "1952"]
[Annotator "ChessBase"]
[PlyCount "71"]
[EventDate "2024.12.14"]
[EventType "swiss"]
[EventCountry "USA"]
[SourceTitle "playchess.com"]
[Source "ChessBase"]
[SourceQuality "1"]
[TimeControl "900+10"]

1. e4 {[%emt 0:00:01]} e5 {[%emt 0:00:01]} 2. Nf3 {[%emt 0:00:02]} Nf6 {[%emt 0:00:02]} 3. d4 {[%emt 0:00:04]} Nxe4 {[%emt 0:00:05]} 4. Bd3 {[%emt 0:00:03]} d5 {[%emt 0:00:02]} 5. Nxe5 {[%emt 0:00:04]} Nd7 {[%emt 0:00:41]} 6. Nc3 {[%emt 0:00:06]} Nxe5 {[%emt 0:00:47]} 7. dxe5 {[%emt 0:00:08]} Nc5 {[%emt 0:00:04]} 8. Nxd5 {[%emt 0:01:09]} c6 {[%emt 0:01:11]} 9. Nf4 {[%emt 0:00:42]} Qd4 {[%emt 0:01:21]} 10. O-O {[%emt 0:00:14]} Nxd3 {[%emt 0:00:36]} 11. cxd3 {[%emt 0:00:52]} Bf5 {[%emt 0:00:41]} 12. Qb3 {[%emt 0:00:20]} O-O-O {[%emt 0:00:15]} 13. Qxf7 {[%emt 0:00:22]} Qxe5 {[%emt 0:00:23]} 14. Be3 {[%emt 0:00:10]} g5 {[%emt 0:00:24]} 15. d4 {[%emt 0:01:21]} Qa5 {[%emt 0:01:21]} 16. Bd2 {[%emt 0:01:30]} Qxd2 {[%emt 0:00:31]} 17. Qxf5+ {[%emt 0:00:02]} Kb8 {[%emt 0:00:12]} 18. Ne6 {[%emt 0:00:03]} Bd6 {[%emt 0:01:08]} 19. Nxd8 {[%emt 0:00:03]} Rxd8 {[%emt 0:00:02]} 20. Rad1 {[%emt 0:00:39]} Qxb2 {[%emt 0:00:10]} 21. Qxg5 {[%emt 0:00:19]} Kc7 {[%emt 0:02:23]} 22. d5 {[%emt 0:01:22]} c5 {[%emt 0:00:08]} 23. Rb1 {[%emt 0:00:15]} Qh8 {[%emt 0:00:19]} 24. Rfe1 {[%emt 0:00:21]} Rd7 {[%emt 0:00:18]} 25. Re6 {[%emt 0:00:46]} Qf8 {[%emt 0:00:51]} 26. Rf6 {[%emt 0:00:40]} Qe7 {[%emt 0:00:22]} 27. Qf5 {[%emt 0:00:02]} h5 {[%emt 0:01:16]} 28. h4 {[%emt 0:00:26]} b6 {[%emt 0:00:20]} 29. Kf1 {[%emt 0:00:17]} Qh7 {[%emt 0:00:26]} 30. Qxh7 {[%emt 0:00:29]} Rxh7 {[%emt 0:00:02]} 31. Ke2 {[%emt 0:00:02]} a6 {[%emt 0:00:31]} 32. a4 {[%emt 0:00:11]} Rg7 {[%emt 0:00:06]} 33. g3 {[%emt 0:00:39]} Rg4 {[%emt 0:00:03]} 34. Rf7+ {[%emt 0:00:05]} Kc8 {[%emt 0:01:45]} 35. Rxb6 {[%emt 0:00:03]} Bc7 {[%emt 0:00:01]} 36. Rc6 {[%emt 0:00:03]} 1-0

[Event "FIDE Women World Rapid 2024"]
[Site "New York"]
[Date "2024.12.27"]
[Round "8.7"]
[White "Tsolakidou, Stavroula"]
[Black "Bulmaga, Irina"]
[Result "1-0"]
[ECO "E05"]
[WhiteElo "2451"]
[BlackElo "2386"]
[Annotator "ChessBase"]
[PlyCount "203"]
[EventDate "2024.12.14"]
[EventType "swiss"]
[EventCountry "USA"]
[SourceTitle "playchess.com"]
[Source "ChessBase"]
[SourceQuality "1"]
[TimeControl "900+10"]

1. d4 {[%emt 0:00:05]} Nf6 {[%emt 0:00:01]} 2. c4 {[%emt 0:00:02]} e6 {[%emt 0:00:02]} 3. g3 {[%emt 0:00:05]} d5 {[%emt 0:00:04]} 4. Bg2 {[%emt 0:00:03]} Be7 {[%emt 0:00:02]} 5. Nf3 {[%emt 0:00:06]} O-O {[%emt 0:00:03]} 6. O-O {[%emt 0:00:28]} dxc4 {[%emt 0:00:02]} 7. Qc2 {[%emt 0:01:38]} a6 {[%emt 0:00:03]} 8. a4 {[%emt 0:00:02]} Bd7 {[%emt 0:00:02]} 9. Qxc4 {[%emt 0:00:06]} Bc6 {[%emt 0:00:02]} 10. Bg5 {[%emt 0:00:30]} Nbd7 {[%emt 0:00:07]} 11. Nc3 {[%emt 0:00:30]} h6 {[%emt 0:00:28]} 12. Bxf6 {[%emt 0:00:33]} Nxf6 {[%emt 0:00:07]} 13. a5 {[%emt 0:02:41]} Bd5 {[%emt 0:01:10]} 14. Qd3 {[%emt 0:01:16]} Bxf3 {[%emt 0:00:06]} 15. Bxf3 {[%emt 0:00:05]} c6 {[%emt 0:00:03]} 16. Qc4 {[%emt 0:02:46]} Qd6 {[%emt 0:01:52]} 17. Rfd1 {[%emt 0:00:00]} Rfd8 {[%emt 0:00:55]} 18. e3 {[%emt 0:00:00]} h5 {[%emt 0:00:21]} 19. Na4 {[%emt 0:00:16]} g6 {[%emt 0:01:55]} 20. Nb6 {[%emt 0:00:29]} Rab8 {[%emt 0:00:02]} 21. Qc2 {[%emt 0:00:28]} Qc7 {[%emt 0:01:20]} 22. e4 {[%emt 0:00:39]} Nd7 {[%emt 0:01:04]} 23. Nc4 {[%emt 0:01:14]} e5 {[%emt 0:00:36]} 24. d5 {[%emt 0:00:10]} cxd5 {[%emt 0:00:08]} 25. exd5 {[%emt 0:00:13]} Nf6 {[%emt 0:01:20]} 26. Rac1 {[%emt 0:00:16]} Bd6 {[%emt 0:00:24]} 27. Qd2 {[%emt 0:02:28]} Qe7 {[%emt 0:00:42]} 28. Qg5 {[%emt 0:00:16]} Kg7 {[%emt 0:00:43]} 29. h4 {[%emt 0:00:09]} Re8 {[%emt 0:00:32]} 30. Re1 {[%emt 0:00:11]} Rbd8 {[%emt 0:01:51]} 31. Re2 {[%emt 0:00:22]} Nh7 {[%emt 0:00:36]} 32. Qe3 {[%emt 0:00:40]} f5 {[%emt 0:00:16]} 33. Qc3 {[%emt 0:00:25]} Qf6 {[%emt 0:00:10]} 34. Bg2 {[%emt 0:00:50]} Re7 {[%emt 0:00:30]} 35. b4 {[%emt 0:00:40]} e4 {[%emt 0:00:05]} 36. Qb3 {[%emt 0:00:03]} g5 {[%emt 0:00:20]} 37. hxg5 {[%emt 0:00:09]} Nxg5 {[%emt 0:00:03]} 38. Qb2 {[%emt 0:00:20]} Bb8 {[%emt 0:01:16]} 39. Qxf6+ {[%emt 0:00:06]} Kxf6 {[%emt 0:00:01]} 40. Rd1 {[%emt 0:00:06]} Bd6 {[%emt 0:00:17]} 41. Rb2 {[%emt 0:00:05]} Rc7 {[%emt 0:00:05]} 42. Ne3 {[%emt 0:00:27]} Rdc8 {[%emt 0:00:07]} 43. b5 {[%emt 0:00:06]} Rc1 {[%emt 0:00:33]} 44. Rb1 {[%emt 0:00:01]} Rxd1+ {[%emt 0:00:10]} 45. Nxd1 {[%emt 0:00:02]} Rc5 {[%emt 0:00:16]} 46. bxa6 {[%emt 0:00:08]} bxa6 {[%emt 0:00:01]} 47. Ne3 {[%emt 0:00:05]} Ke5 {[%emt 0:00:29]} 48. Rb6 {[%emt 0:00:19]} Bc7 {[%emt 0:01:17]} 49. Rxa6 {[%emt 0:00:08]} Rc1+ {[%emt 0:00:06]} 50. Kh2 {[%emt 0:00:07]} h4 {[%emt 0:00:07]} 51. Rc6 {[%emt 0:00:23]} Rxc6 {[%emt 0:00:11]} 52. dxc6 {[%emt 0:00:02]} hxg3+ {[%emt 0:00:13]} 53. fxg3 {[%emt 0:00:02]} Kd6 {[%emt 0:00:28]} 54. Nxf5+ {[%emt 0:00:03]} Kxc6 {[%emt 0:00:01]} 55. a6 {[%emt 0:00:04]} Kb6 {[%emt 0:00:06]} 56. Bf1 {[%emt 0:00:04]} Ne6 {[%emt 0:00:13]} 57. Ne7 {[%emt 0:00:11]} Bb8 {[%emt 0:00:17]} 58. Nc8+ {[%emt 0:00:12]} Kc5 {[%emt 0:00:14]} 59. a7 {[%emt 0:00:04]} Bxa7 {[%emt 0:00:02]} 60. Nxa7 {[%emt 0:00:03]} e3 {[%emt 0:00:18]} 61. Nb5 {[%emt 0:00:07]} Kd5 {[%emt 0:00:13]} 62. Kg2 {[%emt 0:00:16]} Ke4 {[%emt 0:00:01]} 63. Nd6+ {[%emt 0:00:17]} Kd4 {[%emt 0:00:04]} 64. Kf3 {[%emt 0:00:11]} Ng5+ {[%emt 0:00:03]} 65. Ke2 {[%emt 0:00:13]} Ke5 {[%emt 0:00:26]} 66. Nc4+ {[%emt 0:00:05]} Kd4 {[%emt 0:00:03]} 67. Nxe3 {[%emt 0:00:14]} Ne4 {[%emt 0:00:04]} 68. g4 {[%emt 0:00:07]} Ke5 {[%emt 0:00:20]} 69. Bg2 {[%emt 0:00:09]} Nf6 {[%emt 0:00:18]} 70. Kf3 {[%emt 0:00:03]} Nxg4 {[%emt 0:00:07]} 71. Kxg4 {[%emt 0:00:05]} Kd4 {[%emt 0:00:03]} 72. Kf4 {[%emt 0:00:02]} Kd3 {[%emt 0:00:02]} 73. Be4+ {[%emt 0:00:05]} Kd4 {[%emt 0:00:02]} 74. Nc2+ {[%emt 0:00:06]} Kc4 {[%emt 0:00:02]} 75. Ke5 {[%emt 0:00:06]} Kc5 {[%emt 0:00:04]} 76. Bd3 {[%emt 0:00:04]} Kc6 {[%emt 0:00:01]} 77. Nb4+ {[%emt 0:00:21]} Kc5 {[%emt 0:00:03]} 78. Na6+ {[%emt 0:00:02]} Kc6 {[%emt 0:00:02]} 79. Bc4 {[%emt 0:00:02]} Kd7 {[%emt 0:00:06]} 80. Bd5 {[%emt 0:00:04]} Ke7 {[%emt 0:00:02]} 81. Be6 {[%emt 0:00:05]} Ke8 {[%emt 0:00:09]} 82. Nc5 {[%emt 0:00:15]} Ke7 {[%emt 0:00:04]} 83. Nb7 {[%emt 0:00:11]} Ke8 {[%emt 0:00:01]} 84. Kf6 {[%emt 0:00:10]} Kf8 {[%emt 0:00:02]} 85. Bd7 {[%emt 0:00:12]} Kg8 {[%emt 0:00:02]} 86. Nd6 {[%emt 0:00:03]} Kh7 {[%emt 0:00:09]} 87. Nf7 {[%emt 0:00:07]} Kg8 {[%emt 0:00:02]} 88. Bf5 {[%emt 0:00:14]} Kf8 {[%emt 0:00:02]} 89. Bh7 {[%emt 0:00:03]} Ke8 {[%emt 0:00:01]} 90. Ne5 {[%emt 0:00:01]} Kf8 {[%emt 0:00:02]} 91. Nd7+ {[%emt 0:00:03]} Ke8 {[%emt 0:00:01]} 92. Ke6 {[%emt 0:00:01]} Kd8 {[%emt 0:00:02]} 93. Kd6 {[%emt 0:00:01]} Ke8 {[%emt 0:00:01]} 94. Bg6+ {[%emt 0:00:02]} Kd8 {[%emt 0:00:01]} 95. Nc5 {[%emt 0:00:07]} Kc8 {[%emt 0:00:02]} 96. Bf7 {[%emt 0:00:08]} Kd8 {[%emt 0:00:02]} 97. Nb7+ {[%emt 0:00:09]} Kc8 {[%emt 0:00:02]} 98. Kc6 {[%emt 0:00:02]} Kb8 {[%emt 0:00:01]} 99. Kb6 {[%emt 0:00:03]} Kc8 {[%emt 0:00:03]} 100. Be6+ {[%emt 0:00:02]} Kb8 {[%emt 0:00:01]} 101. Nc5 {[%emt 0:00:04]} Ka8 {[%emt 0:00:02]} 102. Bf5 {[%emt 0:00:02]} 1-0